Cogmind - Beta 11.1 @@@ ROGUE MODE // 2022.06.30 @ 17:37:37 Player: Jezoensis Result: Self-destructed Performance ------------- Evolutions (1) 500 Regions Visited (5) 1000 Robots Destroyed (22) 110 Value Destroyed (593) 593 Prototype IDs (0) 0 Alien Tech Used (0) 0 Bonus (0) 0 TOTAL SCORE: 2203 Bonus ------- None Cogmind --------- Core Integrity 335/400 Matter 166/300 Energy 275/275 System Corruption 0% Temperature Cool (0) Movement Rolling (95) Ox1 Location -9/Exiles Parts ------- > --- POWER (1) -------- Deuterium Engine > --- PROPULSION (3) --- Advanced Treads Wheel Wheel > --- UTILITY (3) ------ Large Storage Unit Improved Terrain Scanner Terrain Scan Processor > --- WEAPON (2) ------- Heavy Assault Rifle Heavy Assault Rifle > --- INVENTORY (15) --- Deuterium Engine Advanced Treads Advanced Treads Advanced Treads Compact Wheel Compact Wheel Improved Heat Sink Improved Heat Sink Medium Storage Unit High-capacity Matter Pod (200) Visual Processing Unit Medium Laser Assault Rifle Grenade Launcher Mining Laser Peak State ------------ > --- POWER ------------ Deuterium Engine > --- PROPULSION ------- Advanced Treads Advanced Treads Wheel > --- UTILITY ---------- Large Storage Unit Terrain Scan Processor Hacking Suite > --- WEAPON ----------- Heavy Assault Rifle Heavy Assault Rifle > --- INVENTORY -------- Deuterium Engine Advanced Treads Advanced Treads Wheel Wheel Compact Wheel Compact Wheel Improved Heat Sink Medium Storage Unit High-capacity Matter Pod Visual Processing Unit Improved Terrain Scanner Medium Laser Grenade Launcher Mining Laser [Rating: 22] Favorites ----------- Power Light Nuclear Core Engine Deuterium Engine Power Core Light Nuclear Core Propulsion Wheel Treads Advanced Treads Wheel Wheel Utility Large Storage Unit Device Improved Terrain Scanner Storage Large Storage Unit Processor Terrain Scan Processor Hackware Hacking Suite Weapon Heavy Assault Rifle Energy Gun Medium Laser Ballistic Gun Heavy Assault Rifle Launcher Grenade Launcher Special Weapon Mining Laser Build | -11 -10 -10 -9 -9 -9 ------- Run | Scr Mat Min Mat Min Exi Slots Evolved 2 | . . . 2 . . Power . | . . . . . . Propulsion 1 | . . . 1 . . Utility 1 | . . . 1 . . Weapon . | . . . . . . Parts Attached 36 | 10 7 1 15 3 . Power 3 | 1 1 . 1 . . Engine 2 | 1 . . 1 . . Core 1 | . 1 . . . . Reactor . | . . . . . . Propulsion 12 | 4 . . 7 1 . Treads 5 | . . . 5 . . Leg . | . . . . . . Wheel 7 | 4 . . 2 1 . Hover . | . . . . . . Flight . | . . . . . . Utility 9 | 2 2 . 3 2 . Device 4 | 1 . . 1 2 . Storage 3 | 1 2 . . . . Processor 1 | . . . 1 . . Hackware 1 | . . . 1 . . Protection . | . . . . . . Artifact . | . . . . . . Weapon 12 | 3 4 1 4 . . Energy Gun 4 | 2 1 1 . . . Energy Cannon . | . . . . . . Ballistic Gun 5 | 1 1 . 3 . . Ballistic Cannon . | . . . . . . Launcher 2 | . 2 . . . . Special Weapon 1 | . . . 1 . . Impact Weapon . | . . . . . . Slashing Weapon . | . . . . . . Piercing Weapon . | . . . . . . Special Melee Weapon . | . . . . . . Unidentified Prototypes . | . . . . . . Parts Lost 1 | . . . . 1 . Power . | . . . . . . Propulsion 1 | . . . . 1 . Utility . | . . . . . . Weapon . | . . . . . . Highest Loss Streak 1 | . . . . 1 . To Critical Strikes . | . . . . . . Average Slot Usage (%) 99 | . 100 100 99 100 100 Engine 5 | . 2 . 6 11 11 Core 6 | . 11 14 4 . . Treads 7 | . . . 12 11 11 Wheel 23 | . 28 28 20 22 22 Device 8 | . 14 14 1 11 11 Storage 12 | . 14 14 11 11 11 Processor 6 | . . . 11 11 11 Hackware 3 | . . . 10 . . Energy Gun 6 | . 10 14 5 . . Ballistic Gun 15 | . 10 14 15 22 22 Launcher 2 | . 7 . . . . Naked Turns . | . . . . . . Heaviest Build 36 | 13 32 30 36 36 36 Greatest Support 26 | 26 20 20 20 20 20 Greatest Overweight (x) 1 | . 1 1 1 1 1 Average Overweight (x) . | . . 1 1 1 1 Largest Inventory Capacity 15 | 8 15 15 15 15 15 Average Capacity 13 | 7 11 15 15 15 15 Most Carried 15 | 7 14 15 15 15 15 Average Carried 12 | 4 10 14 14 14 15 Final Capacity 15 | 8 15 15 15 15 15 Final Carried 15 | 7 14 15 14 15 15 Class Distribution -------------------- 83% | Scavenger-Mutant 16% | Mutant Dominant Class ---------------- Scavenger-Mutant | -10/Materials Scavenger-Mutant | -10/Mines Scavenger-Mutant | -9/Materials Scavenger-Mutant | -9/Mines Scavenger-Mutant | -9/Exiles Resources | -11 -10 -10 -9 -9 -9 ----------- Run | Scr Mat Min Mat Min Exi Matter Collected 836 | 272 189 181 128 66 . Remotely . | . . . . . . Salvage Created 729 | 74 279 60 235 81 . Parts 47 | 9 15 3 15 5 . Haulers Intercepted . | . . . . . . Recyclers Shooed 2 | 1 1 . . . . Parts Field Recycled . | . . . . . . Retrieved Matter . | . . . . . . Parts Self-Destructed . | . . . . . . Prevented . | . . . . . . Kills | -11 -10 -10 -9 -9 -9 ------- Run | Scr Mat Min Mat Min Exi Combat Hostiles Destroyed 13 | . 7 . 4 2 . Guns 10 | . 4 . 4 2 . AOE 3 | . 3 . . . . Classes Destroyed 8 | 2 2 1 3 . . Worker 3 | 2 . 1 . . . Builder 1 | . . 1 . . . Tunneler 2 | 2 . . . . . Recycler 1 | . 1 . . . . Operator 1 | . . . 1 . . Watcher 1 | . . . 1 . . Grunt 11 | . 7 . 2 2 . Sentry 2 | . . . 2 . . Best Kill Streak 2 | 2 2 2 2 2 . Combat Bots Only 2 | . 2 . 2 2 . Max Kills in Single Turn 2 | 1 2 1 1 1 . Gunslinging . | . . . . . . Exploded 2 | . 2 . . . . Melee . | . . . . . . Uniques/NPCs Destroyed . | . . . . . . Combat | -11 -10 -10 -9 -9 -9 -------- Run | Scr Mat Min Mat Min Exi Damage Taken 733 | . 174 . 428 131 . Core 101 | . 36 . 65 . . Absorbed by Shields . | . . . . . . Core Remaining (%) 92 | 100 . 85 . . . Volleys Fired 78 | 17 21 3 30 7 . Largest 2 | 2 2 2 2 2 . Hottest 100 | 70 70 70 100 46 . Shots Fired 149 | 34 42 6 53 14 . Gun 132 | 34 32 6 46 14 . Cannon . | . . . . . . Launcher 10 | . 10 . . . . Special 7 | . . . 7 . . Kinetic 87 | 17 16 3 37 14 . Thermal 45 | 17 10 2 16 . . Explosive 10 | . 10 . . . . Electromagnetic 7 | . 6 1 . . . Robot Hit Streak 13 | 7 11 3 13 5 . Robot Miss Streak 2 | 2 2 1 1 2 . Penetration Max . | . . . . . . Secondary Targets . | . . . . . . Shots Hit Robots 102 | 25 28 4 37 8 . Core Hits 35 | 4 16 2 9 4 . Critical Kills . | . . . . . . Critical Parts Destroyed . | . . . . . . Critical Strikes 3 | . 1 . 2 . . Burn 3 | . 1 . 2 . . Melee Attacks . | . . . . . . Impact . | . . . . . . Slashing . | . . . . . . Piercing . | . . . . . . Sneak Attacks . | . . . . . . Combat Hostiles . | . . . . . . Follow-up Attacks . | . . . . . . Damage Inflicted 1651 | 322 627 52 528 122 . Guns 1283 | 322 259 52 528 122 . Cannons . | . . . . . . Explosions 356 | . 356 . . . . Melee . | . . . . . . Ramming 12 | . 12 . . . . Kinetic 905 | 184 134 13 452 122 . Thermal 341 | 138 101 26 76 . . Explosive 356 | . 356 . . . . Electromagnetic 37 | . 24 13 . . . Impact . | . . . . . . Slashing . | . . . . . . Piercing . | . . . . . . Highest Corruption . | . . . . . . Average Corruption . | . . . . . . Corruption Purged . | . . . . . . Corruption Blocked . | . . . . . . Overload Shots . | . . . . . . Overflow Damage . | . . . . . . Projectiles . | . . . . . . Explosions . | . . . . . . Melee . | . . . . . . Knockbacks 1 | . 1 . . . . Impact 1 | . 1 . . . . Kinetic . | . . . . . . Secondary . | . . . . . . Self-Inflicted Damage 6 | . 6 . . . . Shots . | . . . . . . Rammed 1 | . 1 . . . . Targets Rammed 1 | . 1 . . . . Kicked . | . . . . . . Crushed . | . . . . . . Highest Temperature 108 | 108 99 30 93 . . Average Temperature 32 | 42 29 12 31 . . Received Heat Transfer 414 | . 96 . 243 75 . Siege Activations . | . . . . . . Robots Corrupted . | . . . . . . Combat Hostiles . | . . . . . . Parts Fried . | . . . . . . Impact Corruptions . | . . . . . . Robots Melted . | . . . . . . Combat Hostiles . | . . . . . . Parts Melted 1 | . . . 1 . . Heat Transferred 1221 | 407 370 74 370 . . Parts Sabotaged . | . . . . . . Parts Stolen . | . . . . . . Parts Stripped . | . . . . . . Power Chain Reactions . | . . . . . . Missiles Intercepted . | . . . . . . Alert | -11 -10 -10 -9 -9 -9 ------- Run | Scr Mat Min Mat Min Exi Peak Influence 400 | 20 400 166 315 192 . Initial 156 | . 13 156 64 122 . Average 152 | 5 193 158 167 181 . Maximum Alert Level 2 | . 2 . 1 . . Low Security (%) 73 | 100 57 100 64 100 . Level 1 25 | . 37 . 35 . . Level 2 1 | . 4 . . . . Level 3 . | . . . . . . Level 4 . | . . . . . . Level 5 . | . . . . . . High Security . | . . . . . . Max Security . | . . . . . . Squads Dispatched 7 | . 5 . 2 . . Investigation 3 | . 2 . 1 . . Extermination . | . . . . . . Reinforcement 4 | . 3 . 1 . . Assault . | . . . . . . Garrison . | . . . . . . Intercept . | . . . . . . Searches Triggered . | . . . . . . Construction Impeded . | . . . . . . Haulers Reinforced . | . . . . . . Active Scanning Responses . | . . . . . . Cargo Convoy Interrupts . | . . . . . . Stealth | -11 -10 -10 -9 -9 -9 --------- Run | Scr Mat Min Mat Min Exi Distress Signals 2 | . 1 . 1 . . Communications Jammed . | . . . . . . Distress Signals . | . . . . . . Times Spotted 27 | . 14 . 11 2 . Peak Tracking Total 5 | . 5 . 4 2 . Tactical Retreats 4 | . 2 . 2 . . Traps | -11 -10 -10 -9 -9 -9 ------- Run | Scr Mat Min Mat Min Exi Traps Triggered 1 | . 1 . . . . Indirectly . | . . . . . . Trap Hack Attempts . | . . . . . . Triggered . | . . . . . . Disarmed . | . . . . . . Reprogrammed . | . . . . . . Reused . | . . . . . . Traps Extracted . | . . . . . . Installed . | . . . . . . Triggered . | . . . . . . Machines | -11 -10 -10 -9 -9 -9 ---------- Run | Scr Mat Min Mat Min Exi Machines Disabled 3 | . 1 . . 2 . Max in Single Turn 1 | . 1 . . 1 . Machines Sabotaged . | . . . . . . Garrisons Compromised . | . . . . . . Overloaded Fab Kills . | . . . . . . Hacking | -11 -10 -10 -9 -9 -9 --------- Run | Scr Mat Min Mat Min Exi Machines Accessed 6 | . 3 . 3 . . Terminals 6 | . 3 . 3 . . Fabricators . | . . . . . . Repair Stations . | . . . . . . Recycling Units . | . . . . . . Scanalyzers . | . . . . . . Garrison Access . | . . . . . . Total Hacks 28 | . 16 . 12 . . Successful 16 | . 8 . 8 . . Failed 10 | . 7 . 3 . . Catastrophic . | . . . . . . Database Lockouts 2 | . 1 . 1 . . Manual 27 | . 18 . 9 . . Terminals 28 | . 16 . 12 . . Fabricators . | . . . . . . Repair Stations . | . . . . . . Recycling Units . | . . . . . . Scanalyzers . | . . . . . . Garrison Access . | . . . . . . Terminal Hacks 9 | . 4 . 5 . . Robot Analysis 6 | . 3 . 3 . . Terminal Index 2 | . 1 . 1 . . Locate Traps 1 | . . . 1 . . Fabricator Hacks . | . . . . . . Repair Station Hacks . | . . . . . . Recycling Unit Hacks . | . . . . . . Scanalyzer . | . . . . . . Garrison Access Hacks . | . . . . . . Unauthorized Hacks 7 | . 4 . 3 . . Terminals 7 | . 4 . 3 . . Track 3 | . 2 . 1 . . Botnet 4 | . 2 . 2 . . Fabricators . | . . . . . . Repair Stations . | . . . . . . Recycling Units . | . . . . . . Scanalyzers . | . . . . . . Garrison Access . | . . . . . . Data Cores Recovered . | . . . . . . Used . | . . . . . . Hacking Detections 6 | . 3 . 3 . . Full Trace Events 3 | . 2 . 1 . . Feedback Events . | . . . . . . Feedback Blocked . | . . . . . . Robot Schematics Acquired . | . . . . . . Robots Built . | . . . . . . Authchips . | . . . . . . Time . | . . . . . . Total Robot Build Rating . | . . . . . . Part Schematics Acquired . | . . . . . . Parts Built . | . . . . . . Authchips . | . . . . . . Time . | . . . . . . Total Part Build Rating . | . . . . . . Parts Repaired . | . . . . . . Time . | . . . . . . Parts Recycled . | . . . . . . Recycled Matter . | . . . . . . Retrieved Matter . | . . . . . . Retrieved Components . | . . . . . . Parts Scanalyzed . | . . . . . . Part Schematics Acquired . | . . . . . . Parts Damaged . | . . . . . . Bothacking | -11 -10 -10 -9 -9 -9 ------------ Run | Scr Mat Min Mat Min Exi Used RIF Installer . | . . . . . . Robots Hacked . | . . . . . . Non-combat . | . . . . . . Combat . | . . . . . . Robot Hacks Applied . | . . . . . . Relay Couplers Released . | . . . . . . Fabnet Peak Effective % . | . . . . . . Robots Rewired . | . . . . . . Allies Hacked . | . . . . . . Hacks Repelled . | . . . . . . Allies | -11 -10 -10 -9 -9 -9 -------- Run | Scr Mat Min Mat Min Exi Total Allies . | . . . . . . Largest Group . | . . . . . . Highest-Rated Group . | . . . . . . Highest-Rated Ally . | . . . . . . Total Orders . | . . . . . . Ally Attacks . | . . . . . . Total Damage . | . . . . . . Kills . | . . . . . . Allies Corrupted . | . . . . . . Allies Melted . | . . . . . . Intel | -11 -10 -10 -9 -9 -9 ------- Run | Scr Mat Min Mat Min Exi Robot Analysis Total 6 | . 3 . 3 . . Derelict Logs Recovered . | . . . . . . Drone Launches . | . . . . . . Drone Recoveries . | . . . . . . Exploration | -11 -10 -10 -9 -9 -9 ------------- Run | Scr Mat Min Mat Min Exi Turns Passed 1009 | 128 273 55 328 68 157 Spaces Moved 729 | 66 211 45 198 44 165 Core 18 | 18 . . . . . Treads . | . . . . . . Legs . | . . . . . . Wheels 711 | 48 211 45 198 44 165 Hover . | . . . . . . Flight . | . . . . . . Fastest Speed 50 | 50 80 95 95 95 95 Average Speed 91 | 83 87 95 95 95 95 Slowest Speed 100 | 100 95 95 95 95 95 Overloaded Moves . | . . . . . . Propulsion Burnouts . | . . . . . . Robots Hopped . | . . . . . . Cave-ins Triggered . | . . . . . . Exploration Rate (%) 27 | 4 53 10 24 17 55 Regions Visited 5 Branch Regions 3 Pre-discovered Areas . | . . . . . . Known Exits Taken . | . . . . . . Unknown Exits Taken 5 | 1 1 1 1 1 . Scrap Searched 2 | . . 1 . 1 . Spaces Dug 7 | . . . 7 . . Terrain Destroyed 36 | . 29 . 7 . . Melee . | . . . . . . Projectile 7 | . . . 7 . . AOE 29 | . 29 . . . . Terrain Rammed . | . . . . . . Walls Destroyed . | . . . . . . Machines Disabled . | . . . . . . Actions | -11 -10 -10 -9 -9 -9 --------- Run | Scr Mat Min Mat Min Exi Total 903 | 102 256 51 274 55 165 Wait 17 | . 6 . 11 . . Move 724 | 65 210 44 197 43 165 Hop . | . . . . . . Pick Up 28 | 8 8 2 8 2 . Fast Attach 11 | 6 1 . 4 . . Attach 6 | 3 . . 2 1 . Detach 2 | 2 . . . . . Swap 19 | 1 6 1 9 2 . Drop 17 | . 3 1 13 . . Fire 78 | 17 21 3 30 7 . Melee . | . . . . . . Ram 1 | . 1 . . . . Kick . | . . . . . . Crush . | . . . . . . Escape Stasis . | . . . . . . Rewire . | . . . . . . Trap . | . . . . . . Miscellaneous . | . . . . . . Route ------- -11/Scrapyard -10/Materials (discovered 2 exits: *Mat / [*Min]) -10/Mines -9/Materials -9/Mines -9/Exiles (discovered 1 exit: [*Min]) History --------- Turn | Location | Event 12 | -11/Scrapyard | Discovered new exit (range 13) 129 | -11/Scrapyard | Entered Materials 277 | -10/Materials | Discovered new exit (range 14) 389 | -10/Materials | Central database locked down 390 | -10/Materials | Discovered new exit (range 14) 402 | -10/Materials | Entered Mines 404 | -10/Mines | Met a Derelict bent on vengeance 431 | -10/Mines | Discovered new exit (range 15) 457 | -10/Mines | Entered Materials 457 | -9/Materials | Evolved 2 slots: Propulsion x1, Utility x1 479 | -9/Materials | Build established: Scavenger-Mutant 757 | -9/Materials | Discovered new exit (range 15) 764 | -9/Materials | Central database locked down 785 | -9/Materials | Entered Mines 850 | -9/Mines | Deemed a non-threat by the Exiles lab entrance 850 | -9/Mines | Discovered new exit (range 5) 853 | -9/Mines | Entered Exiles 853 | -9/Exiles | Found Exiles lab abandoned 866 | -9/Exiles | Discovered new exit (range 15) 1010 | -9/Exiles | Self-destructed Last Messages --------------- 00805_ G-47 Trooper destroyed. 00812_ Acquired Imp. Heat Sink. 00813_ Acquired 42 matter. 00829_ Searching scrap... 00829_ Found EM Shotgun. 00829_ Found Assault Rifle. 00829_ Found Transport Network Coupler. 00829_ Found Authchip [R/Combat]. 00829_ Found 24 Matter. 00830_ Acquired 24 matter. 00831_ Acquired Assault Rifle. 00845_ A derelict is hurriedly installing traps. 00847_ XF-7WQ(g): "Hehe, this'll put a wrench in their mining defense operations..." 00847_ XF-7WQ(g) slips into the shadows. 00850_ "No threat detected, you may enter." 00850_ EXIT=FOUND LOCATION=UNKNOWN GOAL=ESCAPE 00866_ EXIT=FOUND Map ----- +----------------------------------------------------+ | ????????# ####??#####"" #??#???#?#???#????#?#? | | ??????### ##??######"" #?#?????#????#?????#?? | | ??#####X# #"###""""""" ###???????#???#????#?? | | ? """""" " "" ###?############????? | | "" """ " #####"""""""""##?#?? | | " " " """ """"###?? | | "" " #??? | | " """#?#? | | " "##?# | | " "##?# | | #" ""### | | #""" """""" """# | | #" ######""" "# | | "" ""##??#?#####""" # | | """ """#####?##?#?##""" | | "" """##?????#?????#"""" | | "" ""#??????##????#"" | | " ########???###"""" | | "" ## ####""" | | " """" | | "" | | """" | | # " | | #" " "" """ "" | | #"""" ""## ##""" " "????#" "# | | #"" ""#### @##??##????????#"""""""#? | | ?" """"##??# #??????????????#######?? | | #""" """#???# ##???#?????????????????? | | ?? ""##??? ???#????????????????#?? | | ??"" """##???#" ?????????????????????? | | ???""" ##????#" ?????#???????????????? | | ?????""" #??????# !"" "????????????????????? | | ?????? ??????#########???????????????????? | | ??????#### #?????#??????????????#?????????????? | | ?????????## ???????????????????????????????????? | | ??????????# ???????????????????????????????????? | | ??????????? ????#????????????#???????????????????? | | ???????????????????##???#????????????????????????? | | ?????????????????????????????????????????????????? | | ?????????????????????????????????????????????????? | | ?????????????????????????????????????????????????? | | ?????????????????????????????????????????????????? | | ?????????????????????????????????????????????????? | | ?????????????????????????????????????????????????? | | ?????????????????????????????????????????????????? | | ?????????????????????????????????????????????????? | | ?????????????????????????????????????????????????? | | ?????????????????????????????????????????????????? | | ?????????????????????????????????????????????????? | | ?????????????????????????????????????????????????? | +----------------------------------------------------+ Best States ------------- Heat Dissipation 42 Energy Generation 14 Energy Capacity 275 Matter Stores 300 Matter Capacity 300 Sight Range 16 Terrain Scan Range 16 Terrain Scan Density 85 Evasion (%) 50 Recoil Reduction 2 Offensive Hacking 10 Item Schematics ----------------- None Robot Schematics ------------------ None Fabricated ------------ Nothing Alien Tech Used ----------------- None Achievements -------------- None Challenges ------------ None Game ------ Seed StormEnergyChip Manual? 0 Play Time 00:14:14 Cumulative 709.5 hours Start 2022.06.30 @ 17:24:02 End 2022.06.30 @ 17:37:37 Sessions 1 Manual Loads 0 Difficulty Rogue Special Mode None Game No. 375 Rogue 248 Adventurer 125 Explorer 2 Win Type - Total 83 Types 72/4/4/1/1/0/0/0/1 Lore% 81 Gallery% 88 Achievement% 76 Wizard Run 0 Options --------- ASCII 0 Keyboard 1 Movement Numpad Keybinds 0 Fullscreen 1 Font 36/TerminusFine Map View 76x50 Tactical HUD 1 Map Filters NONE Filters NONE Steam 1 RUN: 57cb125a-8991-4eb2-8fc6-8c1b632f49f6